bitfinex/quotes_ETHUSD_20240722
["timestamp","ask_amount","ask_price","bid_price","bid_amount"]
[1721664184761,2.89042,3459.7,3459.4,0.1521036]
[1721664185088,2.89034,3459.8,3459.4,0.1521036]
[1721664185235,4.15784605,3460.0,3459.4,0.1521036]
[1721664185752,2.89034,3459.8,3459.4,0.1521036]
[1721664186183,2.89046,3459.7,3459.4,0.1521036]
[1721664186773,2.89055,3459.6,3459.4,0.1521036]
[1721664187146,2.89046,3459.7,3459.4,0.1521036]
[1721664187147,2.89044,3459.7,3459.4,0.1521036]
[1721664187538,2.89051,3459.6,3459.4,0.1521036]
[1721664187857,2.89059,3459.5,3459.4,0.1521036]
[1721664188936,6.46255656,3459.5,3459.4,0.1521036]
[1721664191166,9.35314656,3459.5,3459.4,0.1521036]
[1721664191375,13.16095373,3459.5,3459.4,0.1521036]
[1721664191557,23.29926517,3459.5,3459.4,0.1521036]
[1721664191762,21.48293656,3459.5,3459.4,0.1521036]
[1721664191984,23.60498829,3459.5,3459.4,0.1521036]
[1721664192344,21.48293656,3459.5,3459.4,0.1521036]
[1721664193192,18.59234656,3459.5,3459.4,0.1521036]
[1721664193762,20.40994786,3459.5,3459.4,0.1521036]
[1721664194486,18.59234656,3459.5,3459.4,0.1521036]
[1721664194689,21.48293656,3459.5,3459.4,0.1521036]
[1721664194866,18.59234656,3459.5,3459.4,0.1521036]
[1721664195187,21.48293656,3459.5,3459.4,0.1521036]
[1721664195357,23.30012817,3459.5,3459.4,0.1521036]
[1721664195749,23.93693656,3459.5,3459.4,0.1521036]
[1721664195945,2.89172,3458.2,3457.6,2.3928]
[1721664196187,2.89175,3458.2,3457.7,0.528497]
[1721664196389,2.454,3458.5,3457.7,0.528497]
[1721664196753,2.89162,3458.3,3457.7,0.528497]
[1721664196958,2.89177,3458.1,3457.7,0.528497]
[1721664197155,2.89177,3458.1,3457.6,5.28497]
[1721664197371,2.89185,3458.0,3457.6,2.3928]
[1721664198179,2.89194,3457.9,3457.6,2.3928]
[1721664198510,2.89185,3458.0,3457.3,8.14887]
[1721664198511,2.89202,3457.8,3457.3,8.14887]
[1721664198670,5.7841,3457.8,3457.3,5.2565]
[1721664198876,2.89202,3457.8,3457.3,6.25307]
[1721664200069,2.89209,3457.7,3457.3,6.25307]
[1721664200273,2.89223,3457.6,3457.3,2.2565]
[1721664200485,2.89223,3457.6,3456.5,2.89307]
[1721664200486,2.89218,3457.6,3456.4,2.89313]
[1721664200694,2.89218,3457.6,3456.4,2.89312]
[1721664200695,2.89268,3457.0,3456.4,2.89312]
[1721664200986,2.454,3457.3,3456.6,2.89297]
[1721664201195,2.89239,3457.4,3456.8,2.89279]
[1721664201556,2.8923,3457.5,3456.8,2.89276]
[1721664201762,2.454,3457.7,3456.4,2.89315]
[1721664201997,2.89214,3457.7,3456.9,2.89268]
[1721664202205,3.0,3458.3,3457.3,2.89235]
[1721664202401,2.89189,3458.0,3456.8,2.89283]
[1721664202800,2.89176,3458.1,3457.4,2.89228]
[1721664203001,3.0,3458.3,3457.4,2.89228]
[1721664203002,2.89173,3458.2,3457.4,2.89228]
[1721664203300,2.89193,3457.9,3457.2,2.89245]
[1721664203507,2.89205,3457.8,3457.2,2.89245]
[1721664203717,2.89189,3458.0,3457.2,2.89245]
[1721664203868,2.89207,3457.8,3457.2,5.78492]
[1721664204209,2.89207,3457.8,3457.3,2.89242]
[1721664204420,0.6904726,3457.8,3457.3,2.89242]
[1721664204700,0.6904726,3457.8,3457.3,2.89238]
[1721664204997,0.6904726,3457.8,3457.1,2.89254]
[1721664205203,3.5824826,3457.8,3457.2,2.89246]
[1721664205592,3.5824826,3457.8,3456.7,2.3332]
[1721664205795,0.6904726,3457.8,3457.2,2.89244]
[1721664206121,0.6904726,3457.8,3457.3,2.89235]
[1721664206476,2.89204,3457.8,3457.0,2.89263]
[1721664206812,2.89197,3457.9,3457.3,2.89241]
[1721664207023,2.8921,3457.7,3457.1,2.89252]
[1721664207186,2.8922,3457.6,3457.1,2.89252]
[1721664207376,3.18142,3457.6,3457.0,2.89267]
[1721664207577,2.8922,3457.6,3457.0,2.89263]
[1721664207775,2.8922,3457.6,3457.0,2.89262]
[1721664207993,2.8922,3457.6,3456.9,2.8927]
[1721664208419,2.8922,3457.6,3457.1,2.89255]
[1721664208803,2.89209,3457.8,3457.1,2.89255]
[1721664208995,2.89222,3457.6,3456.9,2.8927]
[1721664209182,2.89226,3457.5,3456.9,2.8927]
[1721664209788,0.534609,3457.8,3456.8,2.8928]
[1721664209789,2.89243,3457.3,3456.8,2.8928]
[1721664210089,2.89266,3457.1,3456.5,2.89304]
[1721664210320,2.89266,3457.1,3456.3,8.26942]
[1721664210321,2.89269,3457.0,3456.4,2.89314]
[1721664210521,2.89246,3457.3,3456.5,2.89304]
[1721664210819,2.89264,3457.1,3456.5,2.89304]
[1721664211622,2.89264,3457.1,3456.6,2.89301]
[1721664211806,4.7457,3457.7,3456.7,2.89292]
[1721664211985,2.89253,3457.2,3456.7,2.89292]
[1721664212185,2.89276,3457.0,3456.3,2.3762]
[1721664212494,2.89276,3457.0,3456.5,2.89304]
[1721664213248,6.955973,3457.6,3456.3,5.2694]
[1721664213249,2.89297,3456.7,3456.3,2.3762]
[1721664213387,2.89297,3456.7,3455.9,0.1521036]
[1721664213388,0.289297,3456.6,3456.2,2.89329]
[1721664213735,2.89272,3457.0,3456.4,2.89313]
[1721664213905,2.89255,3457.2,3456.6,2.89294]
[1721664214092,5.89241,3457.4,3456.7,2.89291]
[1721664214093,2.89249,3457.3,3456.7,2.89291]
[1721664214433,2.89252,3457.2,3456.7,2.89291]
[1721664214731,2.89252,3457.2,3456.5,2.89302]
[1721664214913,0.289252,3457.2,3456.2,2.3131]
[1721664215145,2.89268,3457.0,3456.5,2.89309]
[1721664215352,2.89288,3456.8,3456.3,2.89318]
[1721664215863,2.89276,3456.9,3456.2,2.3131]
[1721664216034,2.89276,3456.9,3456.4,2.89317]
[1721664216541,2.89285,3456.8,3456.3,2.89325]
[1721664217142,2.89285,3456.8,3456.3,2.89321]
[1721664218175,2.89285,3456.8,3456.2,5.20644]
[1721664218453,2.89297,3456.7,3456.2,2.89334]
[1721664219167,2.8931,3456.5,3456.0,2.89351]
[1721664219666,2.8931,3456.5,3455.9,2.5674036]
[1721664219667,3.652785,3457.0,3455.9,5.4610036]
[1721664219845,2.89327,3456.3,3455.9,0.1521036]
[1721664220163,2.89318,3456.4,3455.9,0.1521036]
[1721664220753,2.89339,3456.2,3455.9,0.1521036]
[1721664221115,2.454,3456.9,3455.9,0.1521036]
[1721664221392,2.89332,3456.3,3455.9,0.1521036]
[1721664221729,2.89331,3456.3,3455.9,0.1521036]
[1721664222058,2.8932,3456.4,3455.9,0.1521036]
[1721664222360,2.89326,3456.3,3455.9,0.1521036]
[1721664222845,2.89345,3456.1,3455.9,0.1521036]
[1721664223940,2.2969,3456.5,3455.9,0.1521036]
[1721664224146,0.518986,3456.4,3455.9,0.1521036]
[1721664224494,2.89341,3456.2,3455.9,0.1521036]
[1721664224658,0.518986,3456.4,3455.9,0.1521036]
[1721664224846,2.89351,3456.0,3455.9,0.1521036]
[1721664226296,3.472205,3456.0,3455.9,0.1521036]
[1721664226452,2.89331,3456.3,3455.9,0.1521036]
[1721664227000,0.8361175,3456.8,3455.9,0.1521036]
[1721664227152,2.346,3457.0,3455.9,0.1521036]
[1721664227153,5.78562,3456.9,3456.3,2.8932]
[1721664227351,2.696,3457.0,3455.9,2.6367036]
[1721664227352,5.23871,3457.0,3456.2,2.89332]
[1721664227684,5.23871,3457.0,3455.9,5.5302836]
[1721664227685,5.23868,3457.0,3455.9,2.6367036]
[1721664227909,2.346,3457.3,3456.2,2.89332]
[1721664228197,2.89222,3457.6,3456.9,2.89272]
[1721664228404,0.523822,3457.6,3456.9,2.89272]
[1721664228703,2.346,3457.7,3456.9,2.89272]
[1721664228704,5.23815,3457.7,3457.1,2.89252]
[1721664228998,4.7372,3458.1,3457.1,2.89252]
[1721664229201,2.89211,3457.7,3457.1,2.89252]
[1721664229561,2.89219,3457.6,3457.1,2.89252]
[1721664229758,2.89197,3457.9,3457.1,2.89255]
[1721664229959,4.7372,3458.1,3457.1,2.89255]
[1721664230212,2.89201,3457.8,3457.3,2.89241]
[1721664230501,2.892,3457.9,3457.2,2.89249]
[1721664230699,3.3656,3458.0,3457.2,2.89249]
[1721664230903,2.89206,3457.8,3457.1,2.89256]
[1721664231087,2.89211,3457.7,3457.1,2.89253]
[1721664231468,2.89231,3457.5,3456.9,2.8927]
[1721664231663,0.47372,3458.0,3457.1,2.89251]
[1721664231664,2.89196,3457.9,3457.1,2.89251]
[1721664231870,2.89196,3457.9,3457.2,2.8925]
[1721664231871,3.702338,3457.8,3457.2,2.8925]
[1721664232100,0.47372,3458.0,3457.4,2.89234]
[1721664232266,0.47372,3458.0,3457.6,2.89213]
[1721664232466,0.47372,3458.0,3457.2,2.89246]
[1721664232691,2.8916,3458.3,3457.1,2.89255]
[1721664232903,2.89164,3458.3,3457.4,2.89226]
[1721664233071,2.8918,3458.1,3457.6,2.89216]
[1721664233279,2.8918,3458.1,3457.4,2.89226]
[1721664233494,2.89188,3458.0,3457.4,2.89226]
[1721664233681,2.89209,3457.7,3457.2,2.89246]
[1721664234006,2.89209,3457.7,3456.8,2.89279]
[1721664234165,2.89231,3457.5,3456.9,2.89273]
[1721664234797,2.89214,3457.7,3457.1,2.89255]
[1721664235105,2.89227,3457.5,3457.0,2.89267]
[1721664235273,0.578441,3457.4,3456.7,2.89287]
[1721664235475,2.89242,3457.4,3456.9,2.89275]
[1721664235783,2.89226,3457.5,3456.9,2.8927]
[1721664235981,5.28373,3457.7,3457.0,2.89263]
[1721664236286,2.89213,3457.7,3457.2,2.8925]
[1721664236511,2.89218,3457.6,3457.0,5.78524]
[1721664236803,2.89217,3457.7,3457.1,2.89254]
[1721664236965,0.578413,3457.6,3456.6,5.37757]
[1721664237172,2.89195,3457.9,3457.2,2.89245]
[1721664237368,2.89195,3457.9,3457.1,2.89252]
[1721664237369,2.89195,3457.9,3457.3,2.89238]
[1721664237577,3.470288,3458.0,3457.3,2.89236]
[1721664237778,2.89195,3457.9,3457.3,2.89236]
[1721664238205,2.89195,3457.9,3457.1,2.89251]
[1721664238206,2.89208,3457.8,3457.1,2.89251]
[1721664238368,2.8921,3457.7,3457.2,2.8925]
[1721664238568,2.8921,3457.7,3457.1,2.89258]
[1721664239171,1.1258098,3457.8,3457.1,2.89258]
[1721664239384,3.470208,3458.0,3457.3,2.89238]
[1721664239591,2.89194,3457.9,3457.3,5.78474]
[1721664239815,2.89194,3457.9,3457.3,2.89236]
[1721664240187,2.89206,3457.8,3457.2,2.89251]
[1721664240485,2.89214,3457.7,3457.0,2.89263]
[1721664240701,0.289214,3457.6,3456.9,2.89271]
[1721664241018,3.181434,3457.6,3457.1,2.89257]
[1721664241584,0.289214,3457.6,3457.1,2.89257]
[1721664241900,0.578368,3458.0,3457.1,2.89257]
[1721664241901,2.89209,3457.8,3457.3,2.89238]
[1721664242306,2.89214,3457.7,3457.2,2.8925]
[1721664242614,2.89214,3457.7,3457.2,2.89245]
[1721664242788,2.89202,3457.8,3457.3,2.89242]
[1721664243533,2.89202,3457.8,3455.9,0.1521036]
[1721664243534,1.21131609,3457.5,3455.9,0.1521036]
[1721664243835,2.454,3456.7,3455.9,0.1521036]
[1721664244422,2.89259,3457.1,3456.2,2.89329]
[1721664244571,2.89285,3456.8,3455.9,3.0456536]
[1721664244773,2.454,3457.3,3455.9,0.1521036]
[1721664244774,2.89253,3457.2,3455.9,0.1521036]
[1721664244973,2.89236,3457.4,3456.6,2.89296]
[1721664245172,2.89248,3457.3,3456.5,2.89308]
[1721664245576,2.89256,3457.2,3456.5,2.89308]
[1721664245774,3.0902288,3457.7,3456.4,5.2924]
[1721664245775,2.89266,3457.1,3456.6,0.818548]
[1721664246008,2.8925,3457.3,3456.6,3.711538]
[1721664246324,3.0902288,3457.7,3457.0,2.89261]
[1721664246325,2.8921,3457.7,3457.0,2.89261]
[1721664246481,2.8921,3457.7,3457.0,2.89263]
[1721664246681,2.89223,3457.6,3456.8,5.78557]
[1721664246985,2.8921,3457.7,3457.0,2.89263]
[1721664247185,2.89222,3457.6,3457.0,2.89263]
[1721664247386,2.8923,3457.5,3456.9,0.6604118]
[1721664247592,2.89249,3457.3,3456.7,2.89292]
[1721664247885,2.89243,3457.3,3456.8,2.89284]
[1721664248211,2.89265,3457.1,3456.4,2.3993]
[1721664248377,3.282,3457.6,3456.4,5.3993]
[1721664248722,2.89261,3457.1,3456.3,2.89326]
[1721664248873,2.89261,3457.1,3456.3,3.482586]
[1721664248874,2.89278,3456.9,3456.3,3.482586]
[1721664249073,2.89278,3456.9,3456.3,0.589326]
[1721664249279,2.89278,3456.9,3456.2,5.89329]
[1721664249510,2.89278,3456.9,3456.4,2.89317]
[1721664250116,2.89284,3456.8,3456.2,5.89329]
[1721664250314,2.89278,3456.9,3456.2,5.89329]
[1721664250626,2.89278,3456.9,3456.2,5.89328]
[1721664250781,2.89288,3456.8,3456.2,5.89328]
[1721664250983,2.89294,3456.7,3456.2,5.89328]
[1721664251324,2.8928,3456.9,3456.3,2.89325]
[1721664251475,2.89301,3456.7,3456.2,3.0]
[1721664251911,2.89301,3456.7,3456.2,2.89334]
[1721664252095,2.89281,3456.9,3456.2,2.89334]
[1721664252270,2.89281,3456.9,3456.4,2.89317]
[1721664252470,2.89281,3456.9,3456.2,5.78661]
[1721664252471,5.78564,3456.9,3456.2,5.78661]
[1721664252710,2.3807,3457.5,3456.2,1.14172136]
[1721664253019,2.89256,3457.2,3456.6,2.89295]
[1721664254398,2.89256,3457.2,3456.0,5.89349]
[1721664254623,2.89256,3457.2,3456.6,2.89297]
[1721664254826,2.89237,3457.4,3456.8,2.89278]
[1721664255121,2.89237,3457.4,3456.8,5.78556]
[1721664255442,2.89218,3457.6,3457.0,2.89262]
[1721664255726,2.8921,3457.7,3457.0,2.89263]
[1721664255924,2.8921,3457.7,3457.1,2.89256]
[1721664256605,2.8921,3457.7,3457.2,2.8925]
[1721664256923,2.892,3457.9,3457.3,2.89242]
[1721664257083,2.89204,3457.8,3457.0,2.89263]
[1721664257280,2.89218,3457.6,3457.0,2.89261]
[1721664257729,2.89218,3457.6,3457.1,2.89258]
[1721664258130,2.89218,3457.6,3457.0,2.89261]
[1721664258299,2.89218,3457.6,3457.0,5.78523]
[1721664258502,2.89218,3457.6,3457.1,2.89259]
[1721664258735,2.89204,3457.8,3457.1,2.89259]
[1721664259082,2.89214,3457.7,3457.1,2.89259]
[1721664259230,2.89214,3457.7,3457.1,2.89256]
[1721664259430,2.89219,3457.6,3457.1,2.89256]
[1721664259946,2.89205,3457.8,3457.2,2.89247]
[1721664260263,2.89209,3457.7,3457.2,2.89247]
[1721664260625,5.78424,3457.7,3457.1,2.89259]
[1721664260821,2.89201,3457.8,3457.2,2.89245]
[1721664261334,2.89213,3457.7,3457.2,2.89245]
[1721664261530,2.89213,3457.7,3457.0,2.8926]
[1721664261741,2.89203,3457.8,3457.2,2.89246]
[1721664262125,2.8921,3457.7,3457.1,2.89259]
[1721664263156,2.8921,3457.7,3457.2,2.89247]
[1721664264042,1.21134578,3458.2,3457.3,2.8924]
[1721664264043,2.8918,3458.1,3457.3,2.8924]
[1721664264217,2.8918,3458.1,3457.2,0.57851]
[1721664264419,2.89192,3457.9,3457.3,2.89242]
[1721664264620,2.89192,3457.9,3457.3,2.89238]
[1721664265018,2.89192,3457.9,3457.3,2.89237]
[1721664265557,2.89203,3457.8,3457.3,2.89237]
[1721664265850,2.89195,3457.9,3457.1,2.89254]
[1721664266013,2.89198,3457.9,3457.4,2.89234]
[1721664267433,2.89215,3457.7,3457.2,2.89246]
[1721664267862,2.89193,3457.9,3457.3,2.89236]
[1721664268160,5.78365,3458.1,3457.3,2.89236]
[1721664268378,2.89181,3458.1,3457.5,2.8922]
[1721664268665,2.89189,3458.0,3457.5,2.8922]
[1721664269637,2.4919,3458.3,3457.7,2.89209]
[1721664269840,2.89147,3458.5,3458.0,2.89183]
[1721664270169,2.89112,3458.9,3458.2,2.89162]
[1721664270366,5.14557,3459.1,3458.5,2.89141]
[1721664270367,2.89106,3459.0,3458.5,2.89141]
[1721664270526,2.2546,3459.1,3458.7,2.89123]
[1721664270723,2.89092,3459.1,3458.5,2.89136]
[1721664271033,0.578178,3459.1,3458.3,2.89154]
[1721664271227,2.89126,3458.7,3458.1,2.89169]
[1721664271454,2.89117,3458.9,3458.3,2.89158]
[1721664271659,2.89088,3459.2,3458.6,2.89132]
[1721664272029,2.89088,3459.2,3458.6,2.89128]
[1721664272341,2.89073,3459.4,3458.8,2.89116]
[1721664272541,0.824227,3459.3,3458.8,2.89116]
[1721664273068,3.715037,3459.3,3458.6,2.89127]
[1721664273226,3.715037,3459.3,3458.7,2.89121]
[1721664273432,0.824227,3459.3,3458.5,2.4919]
[1721664273663,2.461,3459.6,3458.3,2.89154]
[1721664273925,2.89101,3459.0,3458.5,2.89142]
[1721664274135,2.89088,3459.2,3458.5,2.89142]
[1721664274324,2.8909,3459.2,3458.6,2.89126]
[1721664275141,2.3881,3459.3,3458.6,2.89126]
[1721664275336,2.87301,3459.3,3458.6,2.89126]
[1721664275751,5.76379,3459.3,3458.6,5.78255]
[1721664275942,2.89078,3459.3,3458.6,2.89126]
[1721664276146,2.89071,3459.4,3458.8,2.89113]
[1721664276431,2.89068,3459.4,3458.9,2.89104]
[1721664276632,3.955411,3459.4,3458.9,2.89104]
[1721664277162,3.955411,3459.4,3458.7,2.89119]
[1721664277364,2.89084,3459.2,3458.7,2.89119]
[1721664277569,3.955411,3459.4,3458.8,2.89115]
[1721664277815,1.064731,3459.4,3458.9,2.89109]
[1721664278071,2.89076,3459.3,3458.7,2.89118]
[1721664278373,2.89076,3459.3,3458.3,2.89155]
[1721664278664,2.89076,3459.3,3458.8,2.89111]
[1721664278878,2.461,3459.6,3458.5,2.89138]
[1721664278879,2.89093,3459.1,3458.5,2.89138]
[1721664279168,2.89085,3459.2,3458.5,2.89142]
[1721664279374,2.89081,3459.3,3458.7,2.89125]
[1721664279572,2.8906,3459.5,3458.9,2.89102]
[1721664279928,2.8906,3459.5,3459.0,2.89095]
[1721664280653,5.29546,3459.7,3459.1,2.89086]
[1721664280852,5.29546,3459.7,3459.0,2.89093]
[1721664280853,2.89046,3459.7,3459.0,2.89093]
[1721664281078,2.89046,3459.7,3459.2,2.89083]
[1721664281603,2.89046,3459.7,3459.0,2.89093]
[1721664281886,2.89034,3459.8,3459.2,2.89083]
[1721664282089,2.89018,3460.0,3459.2,2.89079]
[1721664282294,2.89018,3460.0,3459.4,2.89067]
[1721664282594,2.4115,3460.1,3459.4,2.89067]
[1721664282595,2.89025,3459.9,3459.4,2.89067]
[1721664282951,2.89025,3459.9,3459.2,2.89081]
[1721664282952,2.89025,3459.9,3459.2,2.89076]
[1721664283173,2.89025,3459.9,3459.3,2.89074]
[1721664283580,5.78056,3459.9,3459.3,2.89074]
[1721664284302,2.89025,3459.9,3459.4,2.89067]
[1721664284453,2.89018,3460.0,3459.5,2.89058]
[1721664285891,2.4115,3460.1,3459.2,2.89079]
[1721664286209,2.89049,3459.7,3459.0,2.891]
[1721664286357,2.89059,3459.5,3459.0,2.89096]
[1721664286691,2.89055,3459.6,3459.1,2.89091]
[1721664287000,2.89042,3459.7,3459.2,2.89083]
[1721664287151,2.89042,3459.7,3459.2,2.89078]
[1721664287554,2.89042,3459.7,3459.3,2.89075]
[1721664287988,2.89042,3459.7,3459.0,2.89095]
[1721664288200,2.89042,3459.7,3459.2,2.89083]
[1721664288893,2.461,3460.0,3459.2,2.89083]
[1721664288894,2.89037,3459.8,3459.2,2.89083]
[1721664289092,2.89046,3459.7,3459.2,2.89083]
[1721664289307,2.89046,3459.7,3459.2,2.89079]
[1721664289598,2.89046,3459.7,3459.2,5.78158]
[1721664289769,2.89046,3459.7,3458.9,2.3024]
[1721664289975,2.89042,3459.7,3459.3,2.89068]
[1721664290177,2.89034,3459.8,3459.3,2.89068]
[1721664290597,5.30162,3460.1,3459.5,2.89056]
[1721664290908,2.89022,3460.0,3459.5,2.89056]
[1721664291056,2.89027,3459.9,3459.3,2.89068]
[1721664291255,2.89034,3459.8,3459.0,1.259363]
[1721664291499,2.89034,3459.8,3459.3,2.8907]
[1721664292592,2.89045,3459.7,3459.2,2.89079]
[1721664292815,2.89045,3459.7,3459.1,2.89087]
[1721664293110,2.89045,3459.7,3459.2,2.89084]
[1721664293464,2.89045,3459.7,3459.1,2.89091]
[1721664294468,2.461,3460.0,3458.8,3.0]
[1721664294697,2.89048,3459.7,3459.1,2.89084]
[1721664295002,2.89048,3459.7,3458.9,2.4586]
[1721664295003,2.89032,3459.9,3459.4,2.8906]
[1721664295208,2.89017,3460.0,3459.4,5.78121]
[1721664295503,2.89022,3460.0,3459.4,2.89064]
[1721664295709,2.89009,3460.1,3459.6,2.89046]
[1721664295869,2.88997,3460.3,3459.6,2.89046]
[1721664296069,2.89007,3460.2,3459.6,5.78092]
[1721664296366,2.8901,3460.1,3459.6,2.8905]
[1721664296598,2.88994,3460.3,3459.7,2.8904]
[1721664296919,2.88992,3460.3,3459.8,2.8903]
[1721664298582,7.80534,3460.4,3459.8,2.89028]
[1721664298808,2.88993,3460.3,3459.7,2.89042]
[1721664299186,2.89001,3460.2,3459.7,2.89042]
[1721664299526,2.4545,3460.4,3459.7,2.89042]
[1721664299708,2.88984,3460.4,3459.8,2.8903]
[1721664300017,2.3102,3460.7,3459.9,2.89024]
[1721664300340,2.3102,3460.7,3460.2,2.89]
[1721664300341,5.19987,3460.7,3460.2,2.89]
[1721664300615,2.88971,3460.6,3460.0,2.89011]
[1721664300823,2.88971,3460.6,3460.1,2.89004]
[1721664300980,5.19979,3460.7,3460.2,2.89]
[1721664302174,2.88952,3460.8,3460.2,2.88995]
[1721664302410,2.4939,3461.0,3460.4,2.88983]
[1721664302628,2.88948,3460.9,3460.3,2.88992]
[1721664302779,2.8895,3460.8,3460.3,2.88992]
[1721664302996,2.461,3461.2,3460.3,2.88988]
[1721664303737,2.88958,3460.8,3460.3,2.88986]
[1721664303920,2.88959,3460.7,3460.2,2.88996]
[1721664304142,2.88943,3460.9,3459.9,2.4851]
[1721664304435,5.77963,3460.5,3460.0,0.837545]
[1721664304635,2.2648,3460.7,3459.7,3.0]
[1721664304836,2.461,3460.4,3459.1,2.323]
[1721664305039,2.89026,3459.9,3459.4,2.89062]
[1721664305240,2.461,3460.4,3459.1,2.323]
[1721664305443,2.8898,3460.5,3459.8,2.89033]
[1721664305659,2.8898,3460.5,3460.0,2.89011]
[1721664305816,2.2648,3460.7,3460.1,2.89008]
[1721664306002,5.77941,3460.6,3460.1,2.89008]
[1721664306209,2.2648,3460.7,3459.8,2.89027]
[1721664306443,2.88989,3460.4,3459.9,2.8902]
[1721664306648,2.88975,3460.5,3460.0,2.89016]
[1721664306801,2.88967,3460.6,3460.1,2.89007]
[1721664307007,2.88946,3460.9,3460.4,2.88978]
[1721664308045,5.18895,3461.1,3460.5,2.8897]
[1721664308243,5.18895,3461.1,3460.4,2.88983]
[1721664308641,2.88942,3460.9,3460.4,2.88983]
[1721664309241,2.88951,3460.8,3460.2,5.77989]
[1721664309460,2.88951,3460.8,3460.2,2.88993]
[1721664309773,2.88951,3460.8,3460.3,2.8899]
[1721664309954,2.88951,3460.8,3460.0,2.89011]
[1721664310161,5.77908,3460.8,3460.2,2.88997]
[1721664310362,2.8896,3460.7,3460.2,2.88995]
[1721664311741,2.8897,3460.6,3460.0,0.521311]
[1721664311984,5.35058,3460.8,3459.8,3.0]
[1721664312168,2.88997,3460.3,3459.7,2.89035]
[1721664312341,2.88997,3460.3,3459.8,3.0]
[1721664312679,2.88975,3460.5,3459.8,4.178092]
[1721664312842,2.88975,3460.5,3459.9,2.89019]
[1721664313066,2.88975,3460.5,3459.9,8.78039]
[1721664313299,2.88975,3460.5,3459.9,5.78037]
[1721664313467,2.88985,3460.4,3459.7,2.89036]
[1721664313797,2.88978,3460.5,3459.8,3.0]
[1721664313967,2.88978,3460.5,3459.9,3.19025]
[1721664314481,2.88993,3460.3,3459.9,0.3]
[1721664314668,2.88993,3460.3,3459.9,3.3]
[1721664314988,2.88984,3460.4,3459.9,6.19025]
[1721664315381,2.88978,3460.5,3460.0,2.89016]
[1721664315580,2.88978,3460.5,3460.0,3.509185]
[1721664316167,2.88984,3460.4,3460.0,0.619025]
[1721664316394,2.461,3460.8,3460.0,0.619025]
[1721664316567,2.461,3460.8,3459.3,9.8586]
[1721664316568,2.89013,3460.1,3459.4,2.89065]
[1721664316775,2.89012,3460.1,3459.5,2.89055]
[1721664317710,2.89035,3459.8,3459.3,2.8907]
[1721664318005,2.461,3460.4,3459.2,0.2323]
[1721664318305,3.48509343,3460.5,3459.6,2.89045]
[1721664318306,2.88996,3460.3,3459.6,2.89045]
[1721664318602,2.88996,3460.3,3459.6,2.89046]
[1721664318815,2.89009,3460.1,3459.6,3.179506]
[1721664319164,2.89009,3460.1,3459.7,2.89041]
[1721664319363,2.88984,3460.4,3459.7,2.89037]
[1721664319603,2.2748,3460.5,3459.9,2.89017]
[1721664319790,5.26045,3460.7,3460.2,2.88999]
[1721664320102,2.8895,3460.9,3460.3,2.88992]
[1721664320309,2.88954,3460.8,3460.3,2.88992]
[1721664320616,2.88954,3460.8,3460.2,2.89]
[1721664320617,2.88956,3460.8,3460.2,2.89]
[1721664320822,2.88942,3460.9,3460.3,3.467874]
[1721664320966,2.88942,3460.9,3460.3,6.357744]
[1721664321172,2.88942,3460.9,3460.3,3.467874]
[1721664321410,2.88942,3460.9,3460.4,2.88983]
[1721664322484,2.88955,3460.8,3460.2,2.88996]
[1721664322869,5.77892,3460.9,3460.2,2.88996]
[1721664323085,2.88952,3460.8,3460.3,2.88992]
[1721664323277,2.3708,3461.1,3460.2,2.89]
[1721664323482,2.88956,3460.8,3460.2,2.89]
[1721664323700,2.88956,3460.8,3460.3,2.88991]
[1721664323879,2.88956,3460.8,3460.3,2.88986]
[1721664324199,2.88953,3460.8,3460.2,0.578003]
[1721664324524,2.88953,3460.8,3460.3,2.8899]
[1721664324681,2.88942,3460.9,3460.4,2.88979]
[1721664325618,2.8895,3460.8,3460.3,5.77978]
[1721664325818,3.58109343,3461.1,3460.3,2.88987]
[1721664326021,3.58109343,3461.1,3460.0,2.89016]
[1721664326022,4.62553984,3461.1,3460.0,2.89016]
[1721664326208,4.62553984,3461.1,3459.7,2.89036]
[1721664326209,2.88992,3460.4,3459.7,2.89036]
[1721664326409,5.35053,3460.8,3459.6,0.289046]
[1721664326410,2.88997,3460.3,3459.8,2.89033]
[1721664326610,2.88997,3460.3,3459.7,2.89037]
[1721664326919,2.88997,3460.3,3459.6,3.179476]
[1721664326920,2.88997,3460.3,3459.8,2.89032]
[1721664327130,1.21029343,3460.7,3459.7,2.89041]
[1721664327299,2.88997,3460.3,3459.6,3.179476]
[1721664327617,2.88992,3460.3,3459.8,2.89029]
[1721664327916,2.88984,3460.4,3459.8,2.89028]
[1721664328131,4.7881,3460.4,3459.5,2.2764]
[1721664328346,4.7881,3460.4,3459.0,2.4835]
[1721664328347,2.89051,3459.6,3459.0,2.4835]
[1721664328556,2.89043,3459.7,3459.0,3.97214581]
[1721664328704,2.461,3460.0,3459.0,2.4835]
[1721664328705,2.89032,3459.9,3459.0,2.4835]
[1721664328907,2.89032,3459.9,3459.4,2.89063]
[1721664328908,2.89025,3459.9,3459.4,2.89063]
[1721664329428,2.89009,3460.1,3459.4,2.89063]
[1721664329613,2.88997,3460.3,3459.7,2.8904]
[1721664329614,5.77996,3460.3,3459.7,2.8904]
[1721664329814,2.89009,3460.1,3459.4,2.89062]
[1721664329989,3.53739343,3460.4,3459.5,0.05780779]
[1721664329990,1.21029343,3460.4,3459.5,0.05780779]
[1721664330190,4.40423559,3460.6,3459.8,2.89033]